[Event "Czech Open-E Teams 2022"]
[Site "Pardubice"]
[Date "2022.07.16"]
[Round "5.41"]
[White "Slampa, Jan"]
[Black "Dolensky, Filip"]
[Result "1/2-1/2"]
[ECO "B07"]
[WhiteElo "2254"]
[BlackElo "2051"]
[Annotator "ChessBase"]
[PlyCount "110"]
[EventDate "2022.07.14"]
[EventType "team-tourn"]
[EventCountry "CZE"]
[SourceTitle "playchess.com"]
[Source "ChessBase"]
[SourceQuality "1"]
[TimeControl "5400+30"]

1. d4 {[%emt 0:00:04]} d6 {[%emt 0:00:21]} 2. e4 {[%emt 0:04:23]} Nf6 {[%emt 0:00:36]} 3. Nc3 {[%emt 0:00:09]} Nbd7 {[%emt 0:00:57]} 4. Nf3 {[%emt 0:01:06]} e5 {[%emt 0:00:16]} 5. Bc4 {[%emt 0:02:05]} Be7 {[%emt 0:00:36]} 6. O-O {[%emt 0:00:57]} h6 {[%emt 0:00:08]} 7. a4 {[%emt 0:02:25]} c6 {[%emt 0:00:52]} 8. Qe2 {[%emt 0:04:35]} Qc7 {[%emt 0:00:09]} 9. a5 {[%emt 0:03:19]} g5 {[%emt 0:01:13]} 10. Be3 {[%emt 0:10:22]} Nf8 {[%emt 0:01:13]} 11. b4 {[%emt 0:09:13]} Bg4 {[%emt 0:04:30]} 12. b5 {[%emt 0:10:04]} Ng6 {[%emt 0:07:14]} 13. a6 {[%emt 0:07:12]} O-O {[%emt 0:11:01]} 14. axb7 {[%emt 0:04:28]} Qxb7 {[%emt 0:01:09]} 15. h3 {[%emt 0:00:14]} Bxf3 {[%emt 0:02:03]} 16. Qxf3 {[%emt 0:00:49]} a6 {[%emt 0:01:00]} 17. bxc6 {[%emt 0:05:33]} Qxc6 {[%emt 0:08:14]} 18. Nd5 {[%emt 0:02:49]} Qxc4 {[%emt 0:01:32]} 19. Nxe7+ {[%emt 0:00:02]} Nxe7 {[%emt 0:00:09]} 20. Qxf6 {[%emt 0:00:02]} Ng6 {[%emt 0:00:30]} 21. h4 {[%emt 0:00:00]} Rfe8 {[%emt 0:04:43]} 22. hxg5 {[%emt 0:12:22]} Re6 {[%emt 0:04:13]} 23. Qf3 {[%emt 0:00:25]} exd4 {[%emt 0:00:08]} 24. Bc1 {[%emt 0:00:25]} hxg5 {[%emt 0:04:37]} 25. Bxg5 {[%emt 0:01:21]} Qxc2 {[%emt 0:01:43]} 26. e5 {[%emt 0:00:14]} Rae8 {[%emt 0:03:05]} 27. exd6 {[%emt 0:06:41]} Rxd6 {[%emt 0:01:01]} 28. Rfc1 {[%emt 0:03:05]} Qe4 {[%emt 0:11:28]} 29. Rc8 {[%emt 0:00:34]} Rde6 {[%emt 0:00:21]} 30. Qxe4 {[%emt 0:06:41]} Rxe4 {[%emt 0:00:07]} 31. Rxe8+ {[%emt 0:00:01]} Rxe8 {[%emt 0:00:06]} 32. Rxa6 {[%emt 0:00:01]} Re6 {[%emt 0:03:04]} 33. Ra8+ {[%emt 0:00:18]} Kg7 {[%emt 0:00:58]} 34. Rd8 {[%emt 0:00:05]} Ne5 {[%emt 0:05:47]} 35. Rxd4 {[%emt 0:02:36]} Rg6 {[%emt 0:01:15]} 36. f4 {[%emt 0:00:42]} Ng4 {[%emt 0:11:46]} 37. Rd2 {[%emt 0:02:47]} Re6 {[%emt 0:00:47]} 38. Bh4 {[%emt 0:00:29]} Rc6 {[%emt 0:00:54]} 39. Kf1 {[%emt 0:00:34]} Kg6 {[%emt 0:00:34]} 40. Ke2 {[%emt 0:00:41]} Kf5 {[%emt 0:01:00]} 41. g3 {[%emt 0:00:12]} f6 {[%emt 0:00:34]} 42. Ra2 {[%emt 0:00:43]} Rc5 {[%emt 0:01:55]} 43. Kd3 {[%emt 0:00:15]} Rd5+ {[%emt 0:00:44]} 44. Kc3 {[%emt 0:00:39]} Rb5 {[%emt 0:01:24]} 45. Kc4 {[%emt 0:00:33]} Rb1 {[%emt 0:00:18]} 46. Ra5+ {[%emt 0:00:13]} Ke4 {[%emt 0:00:05]} 47. Kc5 {[%emt 0:00:26]} Rd1 {[%emt 0:00:17]} 48. Ra6 {[%emt 0:00:59]} Kf5 {[%emt 0:00:59]} 49. Kc6 {[%emt 0:00:33]} Kg6 {[%emt 0:01:25]} 50. Ra5 {[%emt 0:00:22]} Nh6 {[%emt 0:00:51]} 51. Rd5 {[%emt 0:00:36]} Rc1+ {[%emt 0:01:48]} 52. Kd7 {[%emt 0:00:06]} Nf5 {[%emt 0:00:56]} 53. Ke6 {[%emt 0:00:46]} Re1+ {[%emt 0:00:27]} 54. Kd7 {[%emt 0:00:02]} Re7+ {[%emt 0:00:46]} 55. Kd8 {[%emt 0:00:01]} Rh7 {[%emt 0:00:12]} 1/2-1/2

[Event "Czech Open-E Teams 2022"]
[Site "Pardubice"]
[Date "2022.07.16"]
[Round "5.42"]
[White "Hurtik, Matej"]
[Black "Jedlicka, Ales"]
[Result "1/2-1/2"]
[ECO "B53"]
[WhiteElo "2018"]
[BlackElo "2216"]
[Annotator "ChessBase"]
[PlyCount "47"]
[EventDate "2022.07.14"]
[EventType "team-tourn"]
[EventCountry "CZE"]
[SourceTitle "playchess.com"]
[Source "ChessBase"]
[SourceQuality "1"]
[TimeControl "5400+30"]

1. e4 {[%emt 0:00:07]} c5 {[%emt 0:00:25]} 2. d4 {[%emt 0:00:27]} cxd4 {[%emt 0:00:29]} 3. Nf3 {[%emt 0:00:26]} d6 {[%emt 0:02:04]} 4. Qxd4 {[%emt 0:00:08]} a6 {[%emt 0:00:13]} 5. c4 {[%emt 0:00:38]} Nc6 {[%emt 0:00:10]} 6. Qe3 {[%emt 0:00:13]} Nf6 {[%emt 0:00:27]} 7. Nc3 {[%emt 0:00:27]} g6 {[%emt 0:00:15]} 8. h3 {[%emt 0:01:16]} Bg7 {[%emt 0:00:13]} 9. Be2 {[%emt 0:00:20]} O-O {[%emt 0:00:25]} 10. O-O {[%emt 0:00:08]} Nd7 {[%emt 0:00:33]} 11. b3 {[%emt 0:01:59]} Nde5 {[%emt 0:02:15]} 12. Bb2 {[%emt 0:03:02]} Nxf3+ {[%emt 0:00:51]} 13. Bxf3 {[%emt 0:00:12]} Nd4 {[%emt 0:04:54]} 14. Rad1 {[%emt 0:03:08]} Nxf3+ {[%emt 0:00:36]} 15. Qxf3 {[%emt 0:00:11]} Qa5 {[%emt 0:01:13]} 16. Rd5 {[%emt 0:13:21]} Qc7 {[%emt 0:03:31]} 17. Re1 {[%emt 0:12:30]} Rb8 {[%emt 0:07:59]} 18. e5 {[%emt 0:05:31]} dxe5 {[%emt 0:02:12]} 19. Rdxe5 {[%emt 0:01:05]} Be6 {[%emt 0:04:05]} 20. R5e2 {[%emt 0:10:12]} b5 {[%emt 0:02:24]} 21. cxb5 {[%emt 0:04:30]} axb5 {[%emt 0:00:25]} 22. Nd5 {[%emt 0:15:31]} Bxd5 {[%emt 0:08:19]} 23. Qxd5 {[%emt 0:00:11]} e6 {[%emt 0:00:20]} 24. Qe4 {[%emt 0:01:38]} 1/2-1/2

[Event "Czech Open-E Teams 2022"]
[Site "Pardubice"]
[Date "2022.07.16"]
[Round "5.43"]
[White "Babicka, Michal"]
[Black "Hofman, Krystof"]
[Result "1/2-1/2"]
[ECO "B08"]
[WhiteElo "1989"]
[BlackElo "1972"]
[Annotator "ChessBase"]
[PlyCount "106"]
[EventDate "2022.07.14"]
[EventType "team-tourn"]
[EventCountry "CZE"]
[SourceTitle "playchess.com"]
[Source "ChessBase"]
[SourceQuality "1"]
[TimeControl "5400+30"]

1. e4 {[%emt 0:00:05]} d6 {[%emt 0:00:39]} 2. d4 {[%emt 0:00:08]} Nf6 {[%emt 0:00:08]} 3. Nc3 {[%emt 0:00:10]} g6 {[%emt 0:00:29]} 4. Nf3 {[%emt 0:01:54]} Bg7 {[%emt 0:00:38]} 5. Bc4 {[%emt 0:01:37]} c5 {[%emt 0:06:05]} 6. O-O {[%emt 0:06:21]} cxd4 {[%emt 0:00:21]} 7. Nxd4 {[%emt 0:00:30]} O-O {[%emt 0:00:15]} 8. Bb3 {[%emt 0:02:06]} Nc6 {[%emt 0:00:56]} 9. h3 {[%emt 0:06:21]} Bd7 {[%emt 0:02:56]} 10. Be3 {[%emt 0:00:45]} a6 11. a3 {[%emt 0:01:06]} Rc8 {[%emt 0:11:19]} 12. Nxc6 {[%emt 0:03:49]} Bxc6 {[%emt 0:02:43]} 13. Qd3 {[%emt 0:02:56]} Nd7 {[%emt 0:01:46]} 14. Bd4 {[%emt 0:09:44]} Ne5 {[%emt 0:06:07]} 15. Qd2 {[%emt 0:01:54]} b5 {[%emt 0:01:00]} 16. f4 {[%emt 0:05:48]} Nc4 {[%emt 0:01:53]} 17. Bxc4 {[%emt 0:00:06]} bxc4 {[%emt 0:00:30]} 18. Bxg7 {[%emt 0:00:25]} Kxg7 {[%emt 0:00:18]} 19. Qd4+ {[%emt 0:00:09]} Kg8 {[%emt 0:00:53]} 20. f5 {[%emt 0:04:23]} Bd7 {[%emt 0:13:58]} 21. Nd5 {[%emt 0:02:50]} f6 {[%emt 0:06:13]} 22. Rf3 {[%emt 0:05:00]} Kf7 {[%emt 0:09:11]} 23. Raf1 {[%emt 0:05:54]} g5 {[%emt 0:01:46]} 24. Rc3 {[%emt 0:11:51]} Bb5 {[%emt 0:08:04]} 25. a4 {[%emt 0:02:46]} Bc6 {[%emt 0:04:50]} 26. Rxc4 {[%emt 0:04:32]} Bxd5 {[%emt 0:01:43]} 27. Qxd5+ {[%emt 0:00:51]} Kg7 {[%emt 0:00:18]} 28. b3 {[%emt 0:02:27]} Qb6+ {[%emt 0:02:07]} 29. Kh2 {[%emt 0:02:55]} Rxc4 {[%emt 0:01:10]} 30. Qxc4 {[%emt 0:00:06]} Qb7 31. Qe2 {[%emt 0:07:20]} Rc8 {[%emt 0:02:45]} 32. h4 {[%emt 0:01:25]} h6 {[%emt 0:01:13]} 33. Rd1 {[%emt 0:03:11]} Rc5 {[%emt 0:03:23]} 34. Rd4 {[%emt 0:02:21]} a5 {[%emt 0:01:44]} 35. Qh5 {[%emt 0:01:14]} Rxc2 {[%emt 0:01:18]} 36. Qg6+ {[%emt 0:00:06]} Kf8 {[%emt 0:00:05]} 37. Qxh6+ {[%emt 0:00:18]} Ke8 {[%emt 0:00:29]} 38. hxg5 {[%emt 0:02:28]} Qxb3 {[%emt 0:05:01]} 39. Qg6+ {[%emt 0:00:06]} Kd7 {[%emt 0:00:31]} 40. gxf6 {[%emt 0:00:05]} Qe3 {[%emt 0:01:32]} 41. fxe7 {[%emt 0:01:38]} Qf4+ {[%emt 0:00:41]} 42. Kh3 {[%emt 0:01:04]} Rc3+ 43. g3 Qf1+ {[%emt 0:00:29]} 44. Kh4 {[%emt 0:00:44]} Qh1+ {[%emt 0:01:49]} 45. Kg4 {[%emt 0:00:07]} Qf3+ {[%emt 0:00:37]} 46. Kh4 {[%emt 0:01:18]} Qh1+ {[%emt 0:00:10]} 47. Kg4 {[%emt 0:00:05]} Qf3+ {[%emt 0:00:03]} 48. Kh4 {[%emt 0:00:59]} Qh1+ {[%emt 0:00:04]} 49. Kg4 {[%emt 0:00:27]} Qf3+ {[%emt 0:00:12]} 50. Kh4 {[%emt 0:00:31]} Qh1+ {[%emt 0:00:12]} 51. Kg4 Qf3+ 52. Kg5 Qxg3+ 53. Kh6 Qh4+ 1/2-1/2

[Event "Czech Open-E Teams 2022"]
[Site "Pardubice"]
[Date "2022.07.16"]
[Round "5.44"]
[White "Dolensky, Milan"]
[Black "Popper, Tomas"]
[Result "1-0"]
[ECO "C41"]
[WhiteElo "2073"]
[BlackElo "2063"]
[Annotator "ChessBase"]
[PlyCount "71"]
[EventDate "2022.07.14"]
[EventType "team-tourn"]
[EventCountry "CZE"]
[SourceTitle "playchess.com"]
[Source "ChessBase"]
[SourceQuality "1"]
[TimeControl "5400+30"]

1. e4 {[%emt 0:00:32]} e5 {[%emt 0:00:22]} 2. Nf3 {[%emt 0:00:00]} d6 {[%emt 0:00:08]} 3. Bc4 {[%emt 0:00:00]} Be7 {[%emt 0:00:19]} 4. d3 {[%emt 0:00:29]} Nf6 {[%emt 0:00:07]} 5. c3 {[%emt 0:00:45]} O-O {[%emt 0:00:12]} 6. Nbd2 {[%emt 0:01:20]} c6 {[%emt 0:01:40]} 7. Qe2 {[%emt 0:00:25]} Nbd7 {[%emt 0:01:17]} 8. Bb3 {[%emt 0:05:21]} Nc5 {[%emt 0:01:56]} 9. Bc2 {[%emt 0:04:56]} Ne6 {[%emt 0:01:00]} 10. Nf1 {[%emt 0:00:25]} Re8 {[%emt 0:07:26]} 11. h3 {[%emt 0:06:39]} Bf8 {[%emt 0:16:38]} 12. g4 {[%emt 0:06:36]} g6 {[%emt 0:00:13]} 13. Ng3 {[%emt 0:05:26]} Nf4 {[%emt 0:02:41]} 14. Qf1 {[%emt 0:03:13]} Qc7 {[%emt 0:04:37]} 15. Ne2 {[%emt 0:01:24]} Ne6 {[%emt 0:01:00]} 16. Qg2 {[%emt 0:01:07]} d5 {[%emt 0:03:40]} 17. O-O {[%emt 0:05:05]} Bg7 {[%emt 0:05:22]} 18. Qg3 {[%emt 0:05:07]} dxe4 {[%emt 0:12:12]} 19. dxe4 {[%emt 0:00:16]} Nc5 {[%emt 0:00:37]} 20. Nd2 {[%emt 0:01:04]} Be6 {[%emt 0:09:24]} 21. b4 {[%emt 0:00:57]} Ncd7 {[%emt 0:00:05]} 22. Nd4 {[%emt 0:00:59]} Nf8 {[%emt 0:01:31]} 23. Re1 {[%emt 0:04:13]} Rac8 {[%emt 0:05:29]} 24. N4f3 {[%emt 0:04:24]} N6d7 {[%emt 0:01:43]} 25. Nf1 {[%emt 0:01:15]} Nb6 {[%emt 0:01:06]} 26. Kh2 {[%emt 0:00:47]} Bc4 {[%emt 0:01:15]} 27. Ne3 {[%emt 0:00:31]} Ne6 {[%emt 0:00:08]} 28. a4 {[%emt 0:01:22]} Ba6 {[%emt 0:04:04]} 29. Bb3 {[%emt 0:02:01]} Bd3 {[%emt 0:02:27]} 30. a5 {[%emt 0:02:41]} Nd7 {[%emt 0:01:23]} 31. Nf5 {[%emt 0:01:47]} Bf8 {[%emt 0:04:56]} 32. Bxe6 {[%emt 0:00:53]} fxe6 {[%emt 0:00:29]} 33. Nh6+ {[%emt 0:01:32]} Kg7 {[%emt 0:01:25]} 34. Bg5 {[%emt 0:04:54]} Be7 {[%emt 0:02:38]} 35. Rad1 {[%emt 0:00:52]} Bc4 {[%emt 0:00:51]} 36. Rxd7 {[%emt 0:00:22]} 1-0

[Event "Czech Open-E Teams 2022"]
[Site "Pardubice"]
[Date "2022.07.17"]
[Round "6.1"]
[White "Vykouk, Jan"]
[Black "Polak, Tomas"]
[Result "0-1"]
[ECO "C43"]
[WhiteElo "2476"]
[BlackElo "2512"]
[Annotator "ChessBase"]
[PlyCount "82"]
[EventDate "2022.07.14"]
[EventType "team-tourn"]
[EventCountry "CZE"]
[SourceTitle "playchess.com"]
[Source "ChessBase"]
[SourceQuality "1"]
[TimeControl "5400+30"]

1. e4 {[%emt 0:00:03]} e5 {[%emt 0:00:16]} 2. Nf3 {[%emt 0:00:05]} Nf6 {[%emt 0:00:11]} 3. d4 {[%emt 0:02:13]} Nxe4 {[%emt 0:00:21]} 4. Bd3 {[%emt 0:00:06]} Nc6 {[%emt 0:00:15]} 5. Nxe5 {[%emt 0:01:56]} Nxe5 {[%emt 0:00:24]} 6. dxe5 {[%emt 0:00:40]} d5 {[%emt 0:00:57]} 7. Nc3 {[%emt 0:03:32]} Bb4 {[%emt 0:15:28]} 8. O-O {[%emt 0:00:05]} Bxc3 {[%emt 0:09:17]} 9. bxc3 {[%emt 0:00:06]} O-O {[%emt 0:00:39]} 10. c4 {[%emt 0:11:34]} Be6 {[%emt 0:02:33]} 11. Qh5 {[%emt 0:24:09]} f5 {[%emt 0:03:29]} 12. Ba3 {[%emt 0:08:59]} Rf7 {[%emt 0:06:15]} 13. Rad1 {[%emt 0:03:26]} Nc3 {[%emt 0:12:22]} 14. Rd2 {[%emt 0:00:06]} d4 {[%emt 0:02:27]} 15. f3 {[%emt 0:02:55]} b6 {[%emt 0:07:31]} 16. g4 {[%emt 0:04:39]} g6 {[%emt 0:02:26]} 17. Qh6 {[%emt 0:00:05]} c5 {[%emt 0:00:38]} 18. h4 {[%emt 0:10:48]} Qf8 {[%emt 0:05:05]} 19. Qg5 {[%emt 0:00:04]} Qe7 {[%emt 0:00:18]} 20. Qh6 {[%emt 0:00:27]} fxg4 {[%emt 0:11:49]} 21. h5 {[%emt 0:00:07]} g5 {[%emt 0:00:51]} 22. Rg2 {[%emt 0:03:56]} gxf3 {[%emt 0:04:45]} 23. Rxg5+ {[%emt 0:00:08]} Kh8 {[%emt 0:00:10]} 24. Kf2 {[%emt 0:01:14]} Bxc4 {[%emt 0:02:51]} 25. Bc1 {[%emt 0:03:12]} Bxd3 {[%emt 0:06:55]} 26. cxd3 {[%emt 0:00:02]} Ne2 {[%emt 0:01:21]} 27. Bd2 {[%emt 0:05:38]} Re8 {[%emt 0:00:20]} 28. Rh1 {[%emt 0:05:05]} Qe6 {[%emt 0:01:27]} 29. Qxe6 {[%emt 0:00:05]} Rxe6 {[%emt 0:00:03]} 30. Rh4 {[%emt 0:00:05]} b5 {[%emt 0:02:02]} 31. Rhg4 {[%emt 0:00:12]} Rf8 {[%emt 0:00:15]} 32. Ba5 {[%emt 0:04:23]} Nc1 {[%emt 0:01:00]} 33. Bc7 {[%emt 0:00:39]} Nxd3+ {[%emt 0:00:04]} 34. Kf1 {[%emt 0:00:03]} h6 {[%emt 0:01:28]} 35. Rg6 {[%emt 0:01:01]} Rfe8 {[%emt 0:00:12]} 36. Bd6 {[%emt 0:03:41]} Rxg6 {[%emt 0:00:14]} 37. hxg6 {[%emt 0:00:45]} Kg7 {[%emt 0:00:18]} 38. Rg3 {[%emt 0:00:06]} c4 {[%emt 0:00:55]} 39. Rxf3 {[%emt 0:00:20]} Nxe5 {[%emt 0:00:10]} 40. Rf5 {[%emt 0:00:08]} Nd3 {[%emt 0:00:37]} 41. Rxb5 {[%emt 0:00:08]} c3 {[%emt 0:00:26]} 0-1

[Event "Czech Open-E Teams 2022"]
[Site "Pardubice"]
[Date "2022.07.17"]
[Round "6.2"]
[White "Nemec, Jachym"]
[Black "Simacek, Pavel"]
[Result "0-1"]
[ECO "E47"]
[WhiteElo "2357"]
[BlackElo "2458"]
[Annotator "ChessBase"]
[PlyCount "128"]
[EventDate "2022.07.14"]
[EventType "team-tourn"]
[EventCountry "CZE"]
[SourceTitle "playchess.com"]
[Source "ChessBase"]
[SourceQuality "1"]
[TimeControl "5400+30"]

1. d4 {[%emt 0:00:03]} Nf6 {[%emt 0:00:20]} 2. c4 {[%emt 0:00:10]} e6 {[%emt 0:00:09]} 3. Nc3 {[%emt 0:00:17]} Bb4 {[%emt 0:00:28]} 4. e3 {[%emt 0:00:19]} O-O {[%emt 0:00:35]} 5. Bd3 {[%emt 0:00:37]} c5 {[%emt 0:00:46]} 6. Nf3 {[%emt 0:00:46]} b6 {[%emt 0:10:24]} 7. Bd2 {[%emt 0:00:45]} Bb7 {[%emt 0:00:24]} 8. O-O {[%emt 0:00:52]} d6 {[%emt 0:03:41]} 9. a3 {[%emt 0:04:00]} Bxc3 {[%emt 0:00:09]} 10. Bxc3 {[%emt 0:00:05]} Ne4 {[%emt 0:00:38]} 11. Bxe4 {[%emt 0:14:42]} Bxe4 {[%emt 0:00:22]} 12. Qe2 {[%emt 0:00:05]} Nd7 {[%emt 0:00:51]} 13. Rfd1 {[%emt 0:02:53]} Qe7 {[%emt 0:01:46]} 14. Nd2 {[%emt 0:12:33]} Bc2 {[%emt 0:02:42]} 15. Re1 {[%emt 0:00:53]} Bg6 {[%emt 0:01:49]} 16. e4 {[%emt 0:02:54]} Rfe8 {[%emt 0:18:53]} 17. f3 {[%emt 0:05:26]} Rac8 {[%emt 0:05:10]} 18. Rad1 {[%emt 0:00:38]} Nb8 {[%emt 0:02:56]} 19. d5 {[%emt 0:03:39]} e5 {[%emt 0:07:32]} 20. Nf1 {[%emt 0:00:31]} Nd7 {[%emt 0:02:39]} 21. Ne3 {[%emt 0:02:02]} Rf8 {[%emt 0:02:28]} 22. Qd3 {[%emt 0:00:42]} Qg5 {[%emt 0:00:31]} 23. Bd2 {[%emt 0:00:17]} Qe7 {[%emt 0:01:19]} 24. Kh1 {[%emt 0:00:48]} Nf6 {[%emt 0:01:29]} 25. g4 {[%emt 0:03:03]} h5 {[%emt 0:02:34]} 26. Nf5 {[%emt 0:07:18]} Qd7 {[%emt 0:00:30]} 27. h3 {[%emt 0:03:18]} hxg4 {[%emt 0:04:16]} 28. hxg4 {[%emt 0:00:54]} Nh7 {[%emt 0:00:22]} 29. Re2 {[%emt 0:02:45]} f6 {[%emt 0:00:56]} 30. Rh2 {[%emt 0:01:31]} Kf7 {[%emt 0:01:23]} 31. Kg2 {[%emt 0:01:59]} Rg8 {[%emt 0:03:03]} 32. Rdh1 {[%emt 0:05:59]} Nf8 {[%emt 0:00:10]} 33. Ng3 {[%emt 0:10:43]} Rb8 {[%emt 0:04:55]} 34. b4 {[%emt 0:02:06]} Rc8 {[%emt 0:09:02]} 35. b5 {[%emt 0:02:16]} Ra8 {[%emt 0:00:04]} 36. Rb1 {[%emt 0:00:41]} a6 {[%emt 0:01:48]} 37. Rhh1 {[%emt 0:00:32]} axb5 {[%emt 0:01:21]} 38. Rxb5 {[%emt 0:00:05]} Ra6 {[%emt 0:00:02]} 39. a4 {[%emt 0:00:47]} Rxa4 {[%emt 0:05:27]} 40. Rxb6 {[%emt 0:00:23]} Qe7 {[%emt 0:00:12]} 41. Rhb1 {[%emt 0:03:51]} Ra7 {[%emt 0:00:39]} 42. Qc3 {[%emt 0:01:28]} Nd7 {[%emt 0:00:44]} 43. Rb7 {[%emt 0:00:25]} Rga8 {[%emt 0:00:04]} 44. Nf1 {[%emt 0:00:56]} Qd8 {[%emt 0:00:46]} 45. Ne3 {[%emt 0:00:19]} Qc8 {[%emt 0:00:47]} 46. R7b3 {[%emt 0:00:21]} Kg8 {[%emt 0:01:32]} 47. Kf2 {[%emt 0:00:09]} Qc7 {[%emt 0:00:24]} 48. R1b2 {[%emt 0:00:17]} Kf8 {[%emt 0:01:36]} 49. Ke2 {[%emt 0:00:28]} Be8 {[%emt 0:00:42]} 50. Nf5 {[%emt 0:00:55]} g6 {[%emt 0:00:28]} 51. Ne3 {[%emt 0:01:38]} Kg8 {[%emt 0:00:39]} 52. Nc2 {[%emt 0:00:07]} Nf8 {[%emt 0:00:12]} 53. Ne3 {[%emt 0:01:20]} Ba4 {[%emt 0:00:22]} 54. Rb6 {[%emt 0:04:07]} Nd7 {[%emt 0:00:06]} 55. Rc6 {[%emt 0:00:42]} Bxc6 {[%emt 0:00:43]} 56. dxc6 {[%emt 0:00:04]} Qxc6 {[%emt 0:00:05]} 57. Nd5 {[%emt 0:00:12]} Kf7 {[%emt 0:00:12]} 58. Qe3 {[%emt 0:01:00]} Rh8 {[%emt 0:00:17]} 59. Qf2 {[%emt 0:00:19]} Qa4 {[%emt 0:01:16]} 60. Kd3 {[%emt 0:00:46]} Qd1 {[%emt 0:00:32]} 61. Nc3 {[%emt 0:00:27]} Ra3 {[%emt 0:01:53]} 62. Rb7 {[%emt 0:00:25]} Ke6 {[%emt 0:00:16]} 63. Qg2 {[%emt 0:00:49]} Rha8 {[%emt 0:01:39]} 64. Ke3 {[%emt 0:00:22]} Qc2 {[%emt 0:00:19]} 0-1

[Event "Czech Open-E Teams 2022"]
[Site "Pardubice"]
[Date "2022.07.17"]
[Round "6.3"]
[White "Kraus, Tomas"]
[Black "Kusa, Jakub"]
[Result "1/2-1/2"]
[ECO "A01"]
[WhiteElo "2488"]
[BlackElo "2353"]
[Annotator "ChessBase"]
[PlyCount "69"]
[EventDate "2022.07.14"]
[EventType "team-tourn"]
[EventCountry "CZE"]
[SourceTitle "playchess.com"]
[Source "ChessBase"]
[SourceQuality "1"]
[TimeControl "5400+30"]

1. b3 {[%emt 0:01:27]} d5 {[%emt 0:00:00]} 2. Bb2 {[%emt 0:00:30]} Nf6 {[%emt 0:00:02]} 3. Nf3 e6 {[%emt 0:02:48]} 4. e3 {[%emt 0:02:40]} c5 {[%emt 0:02:58]} 5. d4 {[%emt 0:01:52]} Nc6 {[%emt 0:00:09]} 6. Nbd2 {[%emt 0:03:25]} Be7 {[%emt 0:01:18]} 7. a3 O-O {[%emt 0:06:14]} 8. Bd3 {[%emt 0:00:00]} b6 {[%emt 0:01:41]} 9. O-O {[%emt 0:00:00]} Bb7 {[%emt 0:01:46]} 10. Qe2 {[%emt 0:00:54]} Rc8 {[%emt 0:04:35]} 11. Rfd1 {[%emt 0:06:14]} Qc7 {[%emt 0:05:10]} 12. dxc5 {[%emt 0:03:03]} Bxc5 {[%emt 0:07:33]} 13. b4 {[%emt 0:06:32]} Bd6 {[%emt 0:03:50]} 14. c4 {[%emt 0:19:44]} Ne5 {[%emt 0:03:59]} 15. Rac1 {[%emt 0:04:57]} Qb8 {[%emt 0:07:57]} 16. cxd5 {[%emt 0:03:09]} Bxd5 {[%emt 0:03:37]} 17. e4 {[%emt 0:02:32]} Rxc1 {[%emt 0:05:31]} 18. Rxc1 {[%emt 0:00:26]} Bb7 {[%emt 0:00:47]} 19. Bb1 {[%emt 0:11:55]} Rc8 {[%emt 0:05:52]} 20. Rxc8+ {[%emt 0:05:32]} Bxc8 {[%emt 0:04:18]} 21. Nd4 {[%emt 0:01:37]} Ned7 {[%emt 0:01:59]} 22. g3 {[%emt 0:01:40]} Bb7 {[%emt 0:00:47]} 23. Nc4 {[%emt 0:01:08]} Be7 {[%emt 0:02:25]} 24. f3 {[%emt 0:00:26]} Ne8 {[%emt 0:01:53]} 25. Qd3 {[%emt 0:04:31]} Ne5 {[%emt 0:04:12]} 26. Nxe5 {[%emt 0:02:09]} Qxe5 {[%emt 0:00:06]} 27. Bc3 {[%emt 0:05:31]} Qb8 {[%emt 0:01:11]} 28. Ba2 {[%emt 0:01:08]} Qc8 {[%emt 0:01:18]} 29. Kf2 {[%emt 0:02:27]} Nd6 {[%emt 0:01:33]} 30. e5 {[%emt 0:02:36]} Ba6 {[%emt 0:01:53]} 31. Qc2 {[%emt 0:05:40]} Nb5 {[%emt 0:07:51]} 32. Bb1 {[%emt 0:01:14]} g6 {[%emt 0:00:26]} 33. Nxb5 {[%emt 0:00:41]} Bxb5 {[%emt 0:00:07]} 34. Bd4 {[%emt 0:00:25]} Qd7 {[%emt 0:01:45]} 35. Qc3 {[%emt 0:00:40]} 1/2-1/2

[Event "Czech Open-E Teams 2022"]
[Site "Pardubice"]
[Date "2022.07.17"]
[Round "6.4"]
[White "Pisk, Petr"]
[Black "Studnicka, Tomas"]
[Result "1/2-1/2"]
[ECO "B27"]
[WhiteElo "2329"]
[BlackElo "2316"]
[Annotator "ChessBase"]
[PlyCount "24"]
[EventDate "2022.07.14"]
[EventType "team-tourn"]
[EventCountry "CZE"]
[SourceTitle "playchess.com"]
[Source "ChessBase"]
[SourceQuality "1"]
[TimeControl "5400+30"]

1. e4 {[%emt 0:00:30]} c5 {[%emt 0:04:39]} 2. Nf3 {[%emt 0:03:45]} g6 {[%emt 0:00:43]} 3. d4 {[%emt 0:08:00]} cxd4 {[%emt 0:00:02]} 4. Nxd4 {[%emt 0:00:11]} Bg7 {[%emt 0:00:09]} 5. Nb3 {[%emt 0:00:05]} Nc6 {[%emt 0:00:34]} 6. Be2 {[%emt 0:00:48]} Nf6 {[%emt 0:00:47]} 7. Nc3 {[%emt 0:01:18]} O-O {[%emt 0:03:06]} 8. Bg5 {[%emt 0:06:42]} d6 {[%emt 0:00:56]} 9. Qd2 {[%emt 0:04:55]} a5 {[%emt 0:13:05]} 10. a4 {[%emt 0:04:44]} Be6 {[%emt 0:02:32]} 11. O-O {[%emt 0:03:38]} Bxb3 {[%emt 0:19:47]} 12. cxb3 {[%emt 0:00:55]} Qb6 {[%emt 0:00:41]} 1/2-1/2

[Event "Czech Open-E Teams 2022"]
[Site "Pardubice"]
[Date "2022.07.17"]
[Round "6.5"]
[White "Sramek, Vojtech"]
[Black "Stalmach, Richard"]
[Result "0-1"]
[ECO "B47"]
[WhiteElo "2249"]
[BlackElo "2363"]
[Annotator "ChessBase"]
[PlyCount "78"]
[EventDate "2022.07.14"]
[EventType "team-tourn"]
[EventCountry "CZE"]
[SourceTitle "playchess.com"]
[Source "ChessBase"]
[SourceQuality "1"]
[TimeControl "5400+30"]

1. e4 {[%emt 0:02:04]} c5 {[%emt 0:00:00]} 2. Nf3 {[%emt 0:00:16]} e6 {[%emt 0:00:00]} 3. d4 {[%emt 0:00:20]} cxd4 {[%emt 0:00:03]} 4. Nxd4 {[%emt 0:00:08]} Nc6 {[%emt 0:00:08]} 5. Nc3 {[%emt 0:00:08]} Qc7 {[%emt 0:00:11]} 6. Qd3 {[%emt 0:03:05]} a6 {[%emt 0:00:35]} 7. Nxc6 {[%emt 0:01:27]} bxc6 {[%emt 0:00:19]} 8. Qg3 {[%emt 0:05:38]} Qxg3 {[%emt 0:00:21]} 9. hxg3 {[%emt 0:00:12]} d5 10. Be3 {[%emt 0:00:00]} Nf6 {[%emt 0:15:34]} 11. exd5 {[%emt 0:03:52]} cxd5 {[%emt 0:04:03]} 12. O-O-O {[%emt 0:00:24]} Bd7 {[%emt 0:01:18]} 13. Be2 {[%emt 0:07:41]} Be7 {[%emt 0:01:26]} 14. g4 {[%emt 0:03:58]} Bc6 {[%emt 0:07:51]} 15. g5 {[%emt 0:01:49]} Nd7 {[%emt 0:00:21]} 16. f4 {[%emt 0:01:00]} O-O {[%emt 0:11:22]} 17. Bd3 {[%emt 0:14:48]} g6 {[%emt 0:00:42]} 18. Bd4 {[%emt 0:02:44]} e5 {[%emt 0:08:14]} 19. Bxe5 {[%emt 0:14:54]} Nxe5 {[%emt 0:00:19]} 20. fxe5 {[%emt 0:00:06]} Bxg5+ {[%emt 0:01:32]} 21. Kb1 {[%emt 0:00:05]} Bf4 {[%emt 0:06:44]} 22. Rhe1 {[%emt 0:04:11]} Rfe8 {[%emt 0:01:35]} 23. Bf1 {[%emt 0:00:38]} d4 {[%emt 0:03:06]} 24. Rxd4 {[%emt 0:02:32]} Bxe5 {[%emt 0:00:53]} 25. Rdd1 {[%emt 0:04:00]} Bxc3 {[%emt 0:04:55]} 26. bxc3 {[%emt 0:00:59]} h5 {[%emt 0:00:28]} 27. c4 {[%emt 0:02:20]} h4 {[%emt 0:06:10]} 28. Kb2 {[%emt 0:00:20]} Rxe1 {[%emt 0:08:32]} 29. Rxe1 {[%emt 0:00:11]} Kg7 {[%emt 0:00:05]} 30. Kc3 {[%emt 0:00:21]} Kf6 {[%emt 0:00:54]} 31. Rb1 {[%emt 0:05:02]} Ke5 {[%emt 0:01:29]} 32. Rb6 {[%emt 0:01:32]} Be4 {[%emt 0:00:15]} 33. c5 {[%emt 0:03:01]} g5 {[%emt 0:03:33]} 34. Kb4 {[%emt 0:04:05]} g4 {[%emt 0:02:17]} 35. Ka5 {[%emt 0:04:11]} Rc8 {[%emt 0:00:26]} 36. Kxa6 {[%emt 0:02:54]} Rxc5 {[%emt 0:00:12]} 37. c4 {[%emt 0:00:30]} f5 {[%emt 0:05:01]} 38. Rb3 {[%emt 0:03:24]} f4 {[%emt 0:00:39]} 39. Kb6 {[%emt 0:02:28]} Kd4 {[%emt 0:02:12]} 0-1